bitfinex/quotes_SOLUSD_20230113
["timestamp","ask_amount","ask_price","bid_price","bid_amount"]
[1673652706132,119.9006,18.218,18.194,26.26993693]
[1673652706447,119.9006,18.218,18.195,40.0]
[1673652706863,119.9006,18.218,18.196,26.26993693]
[1673652707272,119.9006,18.218,18.197,20.0]
[1673652707692,119.9006,18.218,18.198,26.26993693]
[1673652708132,20.0,18.217,18.198,26.26993693]
[1673652708440,20.0,18.217,18.199,20.0]
[1673652710551,20.0,18.223,18.2,67.35993693]
[1673652710743,108.5606,18.227,18.201,20.0]
[1673652710939,108.5606,18.227,18.201,66.26993693]
[1673652711364,117.8807,18.23,18.21,41.09]
[1673652711580,40.0,18.229,18.21,41.09]
[1673652711799,40.0,18.229,18.21,67.35993693]
[1673652712214,20.0,18.229,18.21,67.35993693]
[1673652712637,20.0,18.229,18.211,26.26993693]
[1673652713912,117.8807,18.23,18.212,20.0]
[1673652714958,20.0,18.229,18.212,20.0]
[1673652715267,20.0,18.229,18.201,20.0]
[1673652715485,49.59838855,18.228,18.203,109.2972]
[1673652715688,20.0,18.227,18.203,109.2972]
[1673652716750,20.0,18.227,18.204,20.0]
[1673652717163,20.0,18.227,18.203,109.2972]
[1673652717479,105.91419135,18.226,18.19,152.2204]
[1673652717696,26.34661,18.225,18.191,117.9956]
[1673652718016,20.0,18.223,18.191,117.9956]
[1673652718216,148.8946,18.222,18.191,117.9956]
[1673652718400,230.86692996,18.222,18.191,117.9956]
[1673652718618,40.72,18.22,18.191,117.9956]
[1673652718834,20.0,18.219,18.192,20.0]
[1673652719161,20.0,18.218,18.191,117.9956]
[1673652720001,43.02733141,18.22,18.2,41.09]
[1673652720218,32.59838855,18.225,18.202,20.0]
[1673652720409,158.6407,18.23,18.203,20.0]
[1673652720611,40.0,18.229,18.204,20.0]
[1673652721666,40.0,18.229,18.21,41.09]
[1673652722819,20.0,18.229,18.21,41.09]
[1673652724408,20.0,18.227,18.203,20.0]
[1673652725569,20.0,18.227,18.202,40.0]
[1673652725754,20.0,18.227,18.202,20.0]
[1673652727129,59.1400034,18.229,18.202,20.0]
[1673652727339,39.1400034,18.229,18.202,47.13674688]
[1673652727563,59.1400034,18.229,18.202,47.13674688]
[1673652728413,20.0,18.228,18.202,47.13674688]
[1673652729457,60.3991911,18.229,18.202,47.13674688]
[1673652729670,40.0,18.229,18.202,47.13674688]
[1673652729877,32.59838855,18.229,18.21,40.74]
[1673652730092,32.59838855,18.229,18.211,139.1229]
[1673652730404,52.59838855,18.229,18.211,139.1229]
[1673652731236,32.59838855,18.229,18.211,139.1229]
[1673652732177,32.59838855,18.229,18.21,40.74]
[1673652732388,32.59838855,18.229,18.202,27.13674688]
[1673652732389,20.0,18.227,18.204,119.1229]
[1673652732808,20.0,18.225,18.204,119.1229]
[1673652733020,17.0,18.224,18.204,119.1229]
[1673652733453,20.0,18.222,18.2,41.09]
[1673652733656,37.0,18.221,18.2,41.09]
[1673652733874,20.0,18.22,18.2,41.09]
[1673652734087,20.0,18.218,18.2,41.09]
[1673652739983,20.0,18.22,18.2,41.09]
[1673652740306,20.0,18.219,18.2,41.09]
[1673652740715,20.0,18.218,18.195,111.2664]
[1673652741044,20.0,18.216,18.196,20.0]
[1673652741353,53.15172189,18.215,18.196,20.0]
[1673652741574,20.0,18.214,18.19,152.2204]
[1673652741773,37.0,18.213,18.19,152.2204]
[1673652742088,20.0,18.212,18.19,41.09]
[1673652742280,37.0,18.211,18.184,115.3879]
[1673652742488,20.0,18.21,18.184,115.3879]
[1673652742702,37.0,18.209,18.184,115.3879]
[1673652742913,20.0,18.208,18.184,115.3879]
[1673652743346,20.0,18.209,18.185,20.0]
[1673652743562,20.0,18.21,18.185,47.13674688]
[1673652743970,20.0,18.213,18.186,27.13674688]
[1673652744179,20.0,18.213,18.187,20.0]
[1673652744391,20.0,18.212,18.187,20.0]
[1673652744608,20.0,18.211,18.188,27.13674688]
[1673652744935,20.0,18.211,18.189,20.0]
[1673652745240,86.12091469,18.217,18.189,20.0]
[1673652745456,86.12091469,18.217,18.19,159.11004688]
[1673652746493,86.12091469,18.217,18.184,115.3879]
[1673652746494,9.5700017,18.213,18.184,115.3879]
[1673652746714,40.0,18.212,18.184,142.52464688]
[1673652746909,17.0,18.211,18.184,142.52464688]
[1673652747122,40.0,18.21,18.184,142.52464688]
[1673652747336,60.3991911,18.21,18.184,142.52464688]
[1673652748074,60.3991911,18.21,18.186,20.0]
[1673652748288,60.3991911,18.21,18.187,20.0]
[1673652749353,20.0,18.21,18.186,20.0]
[1673652749544,110.2265,18.21,18.186,20.0]
[1673652749752,20.0,18.208,18.186,20.0]
[1673652750298,40.0,18.209,18.186,20.0]
[1673652750505,20.0,18.209,18.186,47.13674688]
[1673652751036,20.0,18.208,18.186,20.0]
[1673652751231,20.0,18.208,18.185,47.13674688]
[1673652751442,20.0,18.208,18.19,40.77]
[1673652751874,20.0,18.208,18.185,20.0]
[1673652752089,56.15172189,18.208,18.185,20.0]
[1673652752278,20.0,18.206,18.185,20.0]
[1673652752708,36.3158028,18.205,18.184,115.3879]
[1673652752908,36.3158028,18.205,18.18,153.0169]
[1673652752909,40.72,18.2,18.173,119.0789]
[1673652753121,115.7247,18.199,18.174,20.0]
[1673652753334,57.0,18.198,18.173,119.0789]
[1673652753549,86.9691928,18.198,18.173,119.0789]
[1673652753866,68.21866474,18.197,18.173,119.0789]
[1673652754813,48.21866474,18.196,18.174,20.0]
[1673652755338,20.0,18.195,18.173,119.0789]
[1673652755570,40.72,18.2,18.173,119.0789]
[1673652755762,40.0,18.199,18.174,20.0]
[1673652756481,20.0,18.199,18.174,20.0]
[1673652756687,20.0,18.199,18.176,20.0]
[1673652756902,20.0,18.199,18.177,20.0]
[1673652758385,40.0,18.199,18.177,20.0]
[1673652758578,20.0,18.199,18.177,20.0]
[1673652758787,20.0,18.199,18.176,20.0]
[1673652759003,20.0,18.199,18.177,20.0]
[1673652760004,20.0,18.2,18.177,20.0]
[1673652760519,20.0,18.218,18.18,40.74]
[1673652760736,115.97,18.209,18.181,20.0]
[1673652760932,115.97,18.209,18.182,108.6103]
[1673652761143,20.0,18.208,18.184,20.0]
[1673652761765,20.0,18.208,18.185,20.0]
[1673652763231,20.0,18.208,18.184,20.0]
[1673652763767,20.0,18.208,18.183,20.0]
[1673652763971,20.0,18.208,18.184,20.0]
[1673652764516,20.0,18.208,18.183,20.0]
[1673652764833,135.97,18.209,18.183,20.0]
[1673652765020,20.0,18.207,18.184,20.0]
[1673652765230,140.1956928,18.21,18.184,20.0]
[1673652765461,110.2265,18.21,18.191,20.0]
[1673652765675,110.2265,18.21,18.192,129.6812]
[1673652766075,110.2265,18.21,18.193,20.0]
[1673652766298,20.0,18.219,18.193,20.0]
[1673652766299,164.8,18.23,18.194,20.0]
[1673652766613,29.9691928,18.217,18.194,20.0]
[1673652766850,116.4234,18.218,18.194,20.0]
[1673652767018,20.0,18.216,18.194,20.0]
[1673652767441,20.0,18.216,18.193,20.0]
[1673652767665,49.9691928,18.217,18.193,20.0]
[1673652767884,29.9691928,18.217,18.193,20.0]
[1673652768093,29.9691928,18.217,18.194,20.0]
[1673652768619,114.6178,18.23,18.194,20.0]
[1673652768828,114.6178,18.23,18.201,20.0]
[1673652768829,20.0,18.228,18.201,20.0]
[1673652769041,49.9691928,18.228,18.202,111.4343]
[1673652769357,9.5700017,18.227,18.203,20.0]
[1673652769541,29.9691928,18.227,18.203,20.0]
[1673652769751,29.9691928,18.227,18.204,20.0]
[1673652769979,20.0,18.226,18.204,20.0]
[1673652770192,29.5700017,18.226,18.204,20.0]
[1673652770402,49.9691928,18.226,18.204,20.0]
[1673652770931,20.0,18.224,18.203,20.0]
[1673652771120,74.43648353,18.226,18.203,20.0]
[1673652771332,54.43648353,18.226,18.203,20.0]
[1673652772483,20.3991911,18.226,18.203,20.0]
[1673652772702,19.1400034,18.225,18.203,20.0]
[1673652772908,20.0,18.223,18.203,20.0]
[1673652773225,19.1400034,18.225,18.203,20.0]
[1673652773436,39.77812025,18.227,18.203,20.0]
[1673652773876,20.0,18.225,18.203,20.0]
[1673652774694,39.1400034,18.225,18.203,20.0]
[1673652775012,19.1400034,18.225,18.203,20.0]
[1673652778600,20.0,18.227,18.203,20.0]
[1673652778919,20.0,18.225,18.203,20.0]
[1673652779327,39.1400034,18.225,18.203,20.0]
[1673652781116,19.1400034,18.225,18.203,20.0]
[1673652781332,20.0,18.228,18.203,20.0]
[1673652781947,20.0,18.226,18.203,20.0]
[1673652782366,29.5700017,18.226,18.203,20.0]
[1673652782582,39.1400034,18.226,18.203,20.0]
[1673652782796,20.0,18.226,18.203,20.0]
[1673652783740,29.9691928,18.227,18.203,20.0]
[1673652783955,116.4234,18.229,18.203,20.0]
[1673652784267,20.0,18.228,18.203,20.0]
[1673652784467,20.0,18.227,18.203,20.0]
[1673652787008,69.9691928,18.228,18.203,20.0]
[1673652788057,20.0,18.227,18.203,20.0]
[1673652790055,114.6178,18.23,18.21,40.77]
[1673652790264,105.4533,18.24,18.21,40.77]
[1673652790265,116.0547,18.235,18.211,20.0]
[1673652790455,116.0547,18.235,18.211,138.5353]
[1673652791006,40.3991911,18.234,18.211,138.5353]
[1673652791529,20.3991911,18.234,18.211,138.5353]
[1673652791738,20.3991911,18.234,18.212,20.0]
[1673652792052,20.3991911,18.234,18.214,20.0]
[1673652792262,20.3991911,18.234,18.215,20.0]
[1673652792685,116.0547,18.235,18.215,20.0]
[1673652793419,139.49059243,18.24,18.212,20.0]
[1673652793420,139.49059243,18.24,18.214,20.0]
[1673652793620,129.6327,18.239,18.215,21.7260105]
[1673652793833,20.0,18.238,18.215,20.0]
[1673652794366,29.9691928,18.237,18.215,20.0]
[1673652794577,20.0,18.238,18.215,20.0]
[1673652794786,20.0,18.236,18.212,20.0]
[1673652794979,54.03729243,18.236,18.212,20.0]
[1673652795846,20.0,18.234,18.212,20.0]
[1673652796366,29.9691928,18.235,18.212,20.0]
[1673652796567,29.9691928,18.235,18.213,20.0]
[1673652796886,29.9691928,18.235,18.212,40.0]
[1673652797282,29.9691928,18.235,18.212,20.0]
[1673652797500,149.6327,18.239,18.214,20.0]
[1673652797835,129.6327,18.239,18.215,20.0]
[1673652798024,109.6327,18.239,18.216,20.0]
[1673652798234,109.6327,18.239,18.22,41.09]
[1673652798459,29.9691928,18.242,18.221,131.76907597]
[1673652798673,105.2833,18.25,18.221,131.76907597]
[1673652798674,109.0714,18.248,18.222,20.0]
[1673652798893,109.0714,18.248,18.223,22.60147144]
[1673652799607,9.5700017,18.247,18.223,22.60147144]
[1673652799819,29.9691928,18.247,18.223,22.60147144]
[1673652800044,20.3991911,18.247,18.223,22.60147144]
[1673652800233,20.0,18.247,18.223,22.60147144]
[1673652800444,109.0714,18.248,18.223,22.60147144]
[1673652800671,109.0714,18.248,18.224,20.0]
[1673652800883,109.0714,18.248,18.225,20.0]
[1673652801074,20.0,18.247,18.225,20.0]
[1673652801493,109.0714,18.248,18.225,20.0]
[1673652801704,9.5700017,18.246,18.223,2.60147144]
[1673652802443,20.0,18.247,18.223,2.60147144]
[1673652802654,20.0,18.245,18.223,2.60147144]
[1673652803081,27.33,18.24,18.215,114.6424]
[1673652803283,20.0,18.239,18.215,114.6424]
[1673652803488,163.84209243,18.239,18.215,114.6424]
[1673652803695,20.0,18.238,18.215,114.6424]
[1673652803924,49.9691928,18.238,18.215,114.6424]
[1673652805295,109.8048,18.239,18.215,114.6424]
[1673652805484,114.0083,18.24,18.221,20.0]
[1673652805698,114.0083,18.24,18.222,20.0]
[1673652806668,113.89105059,18.24,18.222,20.0]
[1673652807291,113.89105059,18.24,18.221,20.0]
[1673652808118,20.0,18.246,18.221,20.0]
[1673652809265,39.1400034,18.246,18.221,20.0]
[1673652812020,20.0,18.246,18.221,20.0]
[1673652812961,20.0,18.247,18.221,20.0]
[1673652813283,109.8048,18.248,18.221,20.0]
[1673652814115,109.8048,18.248,18.221,60.97209663]
[1673652814452,109.8048,18.248,18.23,27.12]
[1673652814632,64.1933,18.25,18.23,27.12]
[1673652814839,64.1933,18.25,18.232,20.0]
[1673652815069,64.1933,18.25,18.233,20.0]
[1673652815701,64.1933,18.25,18.232,20.0]
[1673652818959,71.03729243,18.249,18.223,118.9514]
[1673652819283,20.0,18.248,18.223,118.9514]
[1673652819472,39.1400034,18.248,18.223,118.9514]
[1673652820108,20.3991911,18.247,18.223,118.9514]
[1673652820338,20.0,18.246,18.223,118.9514]
[1673652820533,20.0,18.248,18.223,118.9514]
[1673652820745,20.0,18.248,18.223,145.50577094]
[1673652820955,20.0,18.249,18.223,145.50577094]
[1673652821470,20.0,18.249,18.23,27.17]
[1673652822430,40.0,18.249,18.23,27.17]
[1673652823044,20.0,18.249,18.23,27.17]
[1673652823254,20.0,18.248,18.23,27.17]
[1673652823488,29.5700017,18.248,18.23,27.17]
[1673652823688,49.9691928,18.248,18.23,27.17]
[1673652824523,20.0,18.248,18.23,27.17]
[1673652824727,49.9691928,18.248,18.23,27.17]
[1673652825268,49.9691928,18.248,18.223,118.9514]
[1673652825471,49.9691928,18.248,18.224,20.0]
[1673652826736,20.0,18.246,18.224,20.0]
[1673652828529,9.5700017,18.245,18.224,20.0]
[1673652828716,9.5700017,18.245,18.221,20.0]
[1673652828932,20.0,18.243,18.221,20.0]
[1673652829261,54.03729243,18.243,18.221,20.0]
[1673652830834,20.0,18.239,18.221,20.0]
[1673652831051,20.0,18.239,18.218,109.7699]
[1673652831362,114.6412,18.24,18.22,27.33]
[1673652831769,114.6412,18.24,18.22,53.88437094]
[1673652832199,114.6412,18.24,18.22,168.07917094]
[1673652832614,114.6412,18.24,18.222,20.0]
[1673652832940,114.6412,18.24,18.223,20.0]
[1673652833555,29.9691928,18.247,18.223,20.0]
[1673652833777,64.1933,18.25,18.23,27.12]
[1673652834094,64.1933,18.25,18.232,20.0]
[1673652834292,64.1933,18.25,18.233,20.0]
[1673652834717,64.1933,18.25,18.232,20.0]
[1673652839652,64.1933,18.25,18.232,19.88757893]
[1673652840086,20.0,18.249,18.232,19.88757893]
[1673652840297,64.1933,18.25,18.232,19.88757893]
[1673652840834,84.1933,18.25,18.232,19.88757893]
[1673652841250,20.0,18.249,18.232,19.88757893]
[1673652841975,20.0,18.249,18.22,141.5248]
[1673652842190,20.0,18.249,18.225,115.7243]
[1673652842511,29.9691928,18.248,18.225,115.7243]
[1673652842715,39.5391945,18.248,18.225,115.7243]
[1673652842931,53.0132663,18.248,18.225,115.7243]
[1673652843152,73.4124574,18.248,18.225,115.7243]
[1673652843466,66.49249243,18.247,18.225,115.7243]
[1673652843893,102.90494983,18.246,18.225,115.7243]
[1673652844091,20.0,18.244,18.225,115.7243]
[1673652844304,20.0,18.244,18.22,141.5248]
[1673652844952,27.33,18.24,18.215,26.55437094]
[1673652845163,27.33,18.24,18.214,111.9128]
[1673652845164,20.0,18.238,18.214,111.9128]
[1673652845375,17.0,18.237,18.214,111.9128]
[1673652845565,37.3991911,18.237,18.214,111.9128]
[1673652845901,29.9691928,18.236,18.214,111.9128]
[1673652846108,27.33,18.23,18.209,111.9128]
[1673652846320,20.0,18.229,18.2,142.1568]
[1673652846514,67.82363158,18.229,18.201,111.9128]
[1673652846721,27.15,18.22,18.2,115.0168]
[1673652847151,20.0,18.219,18.2,115.0168]
[1673652847356,30.82363158,18.22,18.201,20.0]
[1673652847570,128.4125,18.227,18.201,20.0]
[1673652847783,128.4125,18.227,18.202,109.2544]
[1673652847979,123.4125,18.227,18.202,109.2544]
[1673652848507,9.5700017,18.226,18.202,109.2544]
[1673652848703,27.17,18.22,18.193,40.28064214]
[1673652848929,37.0,18.219,18.196,40.28064214]
[1673652849139,20.0,18.218,18.196,40.28064214]
[1673652849449,31.96460799,18.217,18.194,109.2544]
[1673652849657,17.0,18.216,18.194,109.2544]
[1673652849892,20.0,18.215,18.194,109.2544]
[1673652850076,51.96460799,18.215,18.194,109.2544]
[1673652850293,31.96460799,18.214,18.194,109.2544]
[1673652850502,31.96460799,18.214,18.19,142.1968]
[1673652850711,27.33,18.21,18.187,113.5449]
[1673652851140,20.0,18.209,18.187,113.5449]
[1673652851675,20.0,18.209,18.187,140.09927094]
[1673652852075,20.0,18.209,18.187,139.09927094]
[1673652852290,6.34661,18.214,18.19,27.17]
[1673652852498,27.17,18.22,18.19,27.17]
[1673652852733,27.17,18.22,18.191,53.10874188]
[1673652853035,27.17,18.22,18.192,20.0]
[1673652853036,20.0,18.219,18.192,20.0]
[1673652853300,26.34661,18.219,18.192,20.0]
[1673652853479,26.34661,18.219,18.193,20.0]
[1673652853663,6.34661,18.218,18.193,20.0]
[1673652854429,17.0,18.217,18.192,20.0]
[1673652854645,46.9691928,18.217,18.192,20.0]
[1673652855033,20.0,18.216,18.192,20.0]
[1673652855247,71.90399562,18.216,18.192,46.55437094]
[1673652855579,20.0,18.216,18.192,20.0]
[1673652855803,20.0,18.216,18.191,20.0]
[1673652856623,29.5700017,18.216,18.191,20.0]
[1673652856831,17.0,18.215,18.191,20.0]
[1673652857041,20.0,18.214,18.191,20.0]
[1673652857251,20.0,18.209,18.191,20.0]
[1673652858304,27.33,18.21,18.191,20.0]
[1673652862370,112.6861,18.217,18.192,20.0]
[1673652862694,112.6861,18.217,18.192,45.81169605]
[1673652862904,112.6861,18.217,18.194,20.0]
[1673652863096,112.6861,18.217,18.195,20.0]
[1673652863845,112.6861,18.217,18.197,20.0]
[1673652864278,112.6861,18.217,18.196,112.9527]
[1673652864490,112.6861,18.217,18.197,20.0]
[1673652867323,27.17,18.22,18.197,20.0]
[1673652867859,20.0,18.219,18.197,20.0]
[1673652868275,20.0,18.218,18.191,20.0]
[1673652870048,20.0,18.219,18.191,20.0]
[1673652870376,147.2712928,18.224,18.191,20.0]
[1673652870377,117.3021,18.224,18.2,27.17]
[1673652870597,117.3021,18.224,18.201,20.0]
[1673652870780,117.3021,18.224,18.202,20.0]
[1673652870991,29.9691928,18.229,18.203,20.0]
[1673652871537,117.3933,18.23,18.21,27.12]
[1673652871852,117.3933,18.23,18.212,20.0]
[1673652872058,117.3933,18.23,18.213,20.0]
[1673652872268,117.3933,18.23,18.21,66.55169605]
[1673652872480,117.3933,18.23,18.205,392.3]
[1673652872683,20.0,18.229,18.206,20.0]
[1673652872897,20.0,18.228,18.206,20.0]
[1673652873097,17.0,18.227,18.206,20.0]
[1673652873309,20.0,18.226,18.206,20.0]
[1673652873843,20.0,18.224,18.206,20.0]
[1673652874044,17.0,18.223,18.206,20.0]
[1673652874255,17.0,18.223,18.2,41.0]
[1673652874482,20.0,18.222,18.2,41.0]
[1673652874684,17.0,18.221,18.2,41.0]
[1673652875003,40.0,18.22,18.2,41.0]
[1673652875207,17.0,18.219,18.192,54.25]
[1673652875425,20.0,18.217,18.193,20.0]
[1673652875618,20.0,18.217,18.192,54.25]
[1673652876796,20.0,18.217,18.194,20.0]
[1673652876991,80.75,18.22,18.194,20.0]
[1673652877203,17.0,18.219,18.195,45.81169605]
[1673652877407,20.0,18.218,18.195,45.81169605]
[1673652877618,20.0,18.217,18.195,45.81169605]
[1673652878037,20.0,18.217,18.195,20.0]
[1673652878250,20.0,18.217,18.193,54.25]
[1673652878465,20.0,18.218,18.195,80.06169605]
[1673652878667,20.0,18.219,18.198,74.25]
[1673652879401,20.0,18.225,18.2,40.74]
[1673652879634,158.1433,18.23,18.2,40.74]
[1673652879853,49.9691928,18.229,18.201,65.81169605]
[1673652880060,41.07,18.25,18.21,41.07]
[1673652880370,41.07,18.25,18.211,20.0]
[1673652880371,122.43941,18.249,18.211,20.0]
[1673652880592,122.43941,18.249,18.212,20.0]
[1673652880593,26.34661,18.248,18.212,20.0]
[1673652880803,6.34661,18.247,18.213,20.0]
[1673652881123,6.34661,18.247,18.22,41.07]
[1673652881124,36.3158028,18.247,18.22,41.07]
[1673652881342,6.34661,18.247,18.222,20.0]
[1673652881649,20.0,18.248,18.223,20.0]
[1673652882489,40.3991911,18.248,18.223,20.0]
[1673652883640,20.0,18.246,18.223,20.0]
[1673652884483,20.0,18.244,18.223,20.0]
[1673652884671,20.0,18.244,18.221,20.0]
[1673652884887,29.9691928,18.243,18.221,20.0]
[1673652885112,20.0,18.242,18.221,20.0]
[1673652886476,20.0,18.242,18.217,418.11169605]
[1673652886666,20.0,18.239,18.218,20.0]
[1673652887211,20.0,18.237,18.218,20.0]
[1673652887616,20.0,18.235,18.218,20.0]
[1673652887826,17.0,18.234,18.218,20.0]
[1673652888254,39.1400034,18.235,18.218,20.0]
[1673652890264,19.1400034,18.235,18.218,20.0]
[1673652890804,26.34661,18.237,18.218,20.0]
[1673652890805,6.34661,18.237,18.218,20.0]
[1673652891024,20.0,18.238,18.218,20.0]
[1673652891232,20.0,18.239,18.218,20.0]
[1673652891543,20.0,18.238,18.218,20.0]
[1673652891755,49.9691928,18.238,18.218,20.0]
[1673652892073,20.0,18.238,18.218,20.0]
[1673652892283,17.0,18.237,18.218,20.0]
[1673652892599,40.0,18.239,18.218,20.0]
[1673652892787,26.5700017,18.238,18.218,20.0]
[1673652892998,20.0,18.237,18.218,20.0]
[1673652893210,17.0,18.236,18.218,20.0]
[1673652893420,20.0,18.235,18.218,20.0]
[1673652895207,17.0,18.236,18.218,20.0]
[1673652895530,20.0,18.237,18.218,20.0]
[1673652896803,29.5700017,18.237,18.218,20.0]
[1673652897217,49.9691928,18.237,18.218,20.0]
[1673652898911,9.5700017,18.237,18.218,20.0]
[1673652899093,29.9691928,18.237,18.218,20.0]
[1673652900698,20.0,18.235,18.218,20.0]
[1673652900882,20.0,18.235,18.213,20.0]
[1673652901298,17.0,18.234,18.213,20.0]
[1673652901940,17.0,18.234,18.212,40.0]
[1673652902269,17.0,18.234,18.212,20.0]
[1673652902793,17.0,18.234,18.211,109.7078]
[1673652902984,45.4866134,18.233,18.211,109.7078]
[1673652903191,20.0,18.231,18.211,109.7078]
[1673652903423,37.0,18.23,18.211,109.7078]
[1673652903827,46.66316267,18.229,18.211,109.7078]
[1673652904035,20.0,18.228,18.211,109.7078]
[1673652904449,86.66316267,18.228,18.211,109.7078]
[1673652904683,20.0,18.227,18.199,54.25]
[1673652904891,17.0,18.226,18.206,108.414]
[1673652905293,20.0,18.225,18.206,108.414]
[1673652905503,23.34661,18.226,18.206,108.414]
[1673652906145,23.34661,18.226,18.207,20.0]
[1673652906776,20.0,18.225,18.207,20.0]
[1673652906985,17.0,18.224,18.207,20.0]
[1673652907203,20.0,18.225,18.207,20.0]
[1673652908255,17.0,18.224,18.207,20.0]
[1673652908458,20.0,18.223,18.207,20.0]
[1673652908672,66.66316267,18.223,18.207,20.0]
[1673652908879,46.66316267,18.222,18.207,20.0]
[1673652909180,20.0,18.221,18.207,20.0]
[1673652909412,17.0,18.224,18.207,20.0]
[1673652909606,115.573,18.233,18.207,20.0]
[1673652909607,29.9691928,18.225,18.207,20.0]
[1673652909813,66.66316267,18.229,18.207,20.0]
[1673652910033,49.9691928,18.227,18.207,20.0]
[1673652910357,6.61234743,18.226,18.207,20.0]
[1673652910556,29.9691928,18.226,18.207,20.0]
[1673652910766,20.0,18.225,18.207,20.0]
[1673652911825,20.0,18.228,18.207,20.0]
[1673652912045,115.573,18.233,18.208,20.0]
[1673652912250,115.573,18.233,18.21,41.07]
[1673652912454,115.573,18.233,18.211,20.0]
[1673652912774,115.573,18.233,18.212,20.0]
[1673652917710,115.573,18.233,18.211,20.0]
[1673652918036,115.573,18.233,18.212,20.0]
[1673652918669,115.573,18.233,18.211,40.0]
[1673652918872,115.573,18.233,18.211,45.81169605]
[1673652919091,17.0,18.232,18.211,45.81169605]
[1673652919309,46.9691928,18.232,18.211,20.0]
[1673652919508,41.07,18.23,18.211,20.0]
[1673652920037,20.0,18.229,18.211,20.0]
[1673652920459,66.66316267,18.229,18.211,20.0]
[1673652920644,46.66316267,18.228,18.211,20.0]
[1673652920854,64.42684537,18.23,18.211,20.0]
[1673652921698,64.42684537,18.23,18.211,19.0]
[1673652922973,41.07,18.23,18.211,19.0]
[1673652923195,20.0,18.232,18.211,19.0]
[1673652923196,29.9691928,18.232,18.211,19.0]
[1673652923389,115.573,18.233,18.212,20.0]
[1673652923593,20.0,18.238,18.214,20.0]
[1673652923810,29.9691928,18.241,18.22,41.07]
[1673652924016,116.0127,18.245,18.22,41.07]
[1673652924220,29.9691928,18.247,18.222,20.0]
[1673652924433,29.9691928,18.247,18.223,20.0]
[1673652924867,110.676,18.249,18.223,20.0]
[1673652925076,110.676,18.249,18.224,112.6262]
[1673652925077,49.9691928,18.248,18.224,112.6262]
[1673652925285,49.9691928,18.248,18.226,20.0]
[1673652925286,20.0,18.247,18.226,20.0]
[1673652925496,26.61234743,18.247,18.225,20.0]
[1673652925815,23.35684537,18.246,18.225,20.0]
[1673652926978,17.0,18.245,18.225,20.0]
[1673652927187,20.0,18.244,18.225,20.0]
[1673652928034,34.28234136,18.249,18.23,40.96]
[1673652928356,55.4460245,18.253,18.231,20.0]
[1673652928988,32.08917913,18.253,18.231,20.0]
[1673652929300,55.4460245,18.253,18.231,20.0]
[1673652929618,28.52975243,18.252,18.231,20.0]